bitfinex/quotes_BTCUSD_20240723
["timestamp","ask_amount","ask_price","bid_price","bid_amount"]
[1721745323037,1.50443482,67096.0,67095.0,0.000913]
[1721745323269,1.86256239,67096.0,67095.0,0.000913]
[1721745323521,2.17610369,67096.0,67095.0,0.000913]
[1721745323728,1.90036737,67096.0,67095.0,0.000913]
[1721745323928,1.88636737,67096.0,67095.0,0.000913]
[1721745324138,1.89221991,67096.0,67095.0,0.000913]
[1721745324347,2.0916281,67096.0,67095.0,0.001913]
[1721745324591,2.29100289,67096.0,67095.0,0.001913]
[1721745324749,2.29062584,67096.0,67095.0,0.001913]
[1721745324955,2.39062584,67096.0,67095.0,0.001913]
[1721745325153,2.48758849,67096.0,67095.0,0.001913]
[1721745325353,2.29062584,67096.0,67095.0,0.001913]
[1721745325832,2.30462584,67096.0,67095.0,0.002913]
[1721745326499,2.29162584,67096.0,67095.0,0.002913]
[1721745326909,2.30462584,67096.0,67095.0,0.002913]
[1721745327404,1.7822,67096.0,67095.0,0.002913]
[1721745327620,1.77213667,67096.0,67095.0,0.000913]
[1721745327837,2.3789427,67096.0,67095.0,0.000913]
[1721745328068,2.3929427,67096.0,67095.0,0.000913]
[1721745328281,2.28123658,67096.0,67095.0,0.000913]
[1721745328508,2.28123658,67096.0,67095.0,0.000413]
[1721745329287,2.27623658,67096.0,67095.0,0.000413]
[1721745329738,2.28923658,67096.0,67095.0,0.000413]
[1721745330449,2.27623658,67096.0,67095.0,0.000413]
[1721745330689,2.27545067,67096.0,67095.0,0.000413]
[1721745330920,2.31645067,67096.0,67095.0,0.000413]
[1721745331121,2.26645067,67096.0,67095.0,0.000413]
[1721745331333,2.29145067,67096.0,67095.0,0.000413]
[1721745331741,2.42741332,67096.0,67095.0,0.000413]
[1721745332112,2.39345067,67096.0,67095.0,0.000413]
[1721745332336,2.34345067,67096.0,67095.0,0.000413]
[1721745332541,2.39345067,67096.0,67095.0,0.000413]
[1721745333538,2.31729991,67096.0,67095.0,0.000413]
[1721745333761,2.39435613,67096.0,67095.0,0.000413]
[1721745333969,2.28035613,67096.0,67095.0,0.000413]
[1721745334435,2.46463911,67096.0,67095.0,0.000413]
[1721745334649,2.57477646,67096.0,67095.0,0.000413]
[1721745335309,2.47477646,67096.0,67095.0,0.000413]
[1721745335941,2.29435613,67096.0,67095.0,0.000413]
[1721745336554,2.4176764,67096.0,67095.0,0.000413]
[1721745336767,2.31647881,67096.0,67095.0,0.000413]
[1721745336984,2.41647881,67096.0,67095.0,0.000413]
[1721745337407,2.31647881,67096.0,67095.0,0.000413]
[1721745337838,1.49997863,67096.0,67095.0,0.12419654]
[1721745338051,1.79805863,67096.0,67095.0,0.000413]
[1721745338265,1.14222102,67096.0,67095.0,0.12419679]
[1721745338475,1.07167799,67096.0,67095.0,0.12419679]
[1721745338699,1.17604,67096.0,67095.0,0.12419679]
[1721745338911,1.09401933,67096.0,67095.0,0.12419679]
[1721745339131,1.24305906,67096.0,67095.0,0.12419679]
[1721745339770,1.24389906,67096.0,67095.0,0.12419218]
[1721745340007,1.84005906,67096.0,67095.0,0.12419218]
[1721745340214,1.02784,67096.0,67095.0,0.12419218]
[1721745340431,1.09485889,67096.0,67095.0,0.12419218]
[1721745340635,1.02784,67096.0,67095.0,0.12419218]
[1721745341287,1.07251684,67096.0,67095.0,0.12419218]
[1721745341491,1.05951684,67096.0,67095.0,0.12419218]
[1721745341702,1.04551684,67096.0,67095.0,0.12419218]
[1721745341952,1.00784,67096.0,67095.0,0.12419218]
[1721745342431,1.00784,67096.0,67095.0,0.000413]
[1721745342904,1.00784,67096.0,67095.0,0.12418699]
[1721745343131,1.00784,67096.0,67095.0,0.27322899]
[1721745343363,1.00784,67096.0,67095.0,0.86939699]
[1721745343809,1.00784,67096.0,67095.0,1.5088502]
[1721745344026,1.00784,67096.0,67095.0,2.1824998]
[1721745344230,1.00784,67096.0,67095.0,2.2054998]
[1721745344653,1.00284,67096.0,67095.0,2.2054998]
[1721745345276,1.00284,67096.0,67095.0,1.9387505]
[1721745345484,1.00284,67096.0,67095.0,1.62740216]
[1721745345726,1.00084,67096.0,67095.0,1.50363014]
[1721745345959,1.00084,67096.0,67095.0,1.6273679]
[1721745346218,1.00084,67096.0,67095.0,1.6293679]
[1721745346422,1.00084,67096.0,67095.0,1.6273679]
[1721745346639,1.00184,67096.0,67095.0,1.61963224]
[1721745346841,1.00284,67096.0,67095.0,1.62163224]
[1721745347075,1.00184,67096.0,67095.0,1.61963224]
[1721745347547,1.00084,67096.0,67095.0,1.61763224]
[1721745347812,1.00084,67096.0,67095.0,1.31954824]
[1721745348263,1.00184,67096.0,67095.0,1.32254824]
[1721745348499,1.00284,67096.0,67095.0,1.16298067]
[1721745348734,1.00284,67096.0,67095.0,1.16198067]
[1721745348735,1.00184,67096.0,67095.0,1.16198067]
[1721745348997,0.00084,67096.0,67095.0,0.26675076]
[1721745349230,0.00184,67096.0,67095.0,0.26775076]
[1721745349464,0.00184,67096.0,67095.0,0.41679276]
[1721745349680,0.00184,67096.0,67095.0,0.26775076]
[1721745349888,0.00084,67096.0,67095.0,0.41579276]
[1721745350355,0.00184,67096.0,67095.0,0.12515076]
[1721745351063,0.15188,67096.0,67095.0,0.12715076]
[1721745351460,0.44896,67096.0,67095.0,0.12515076]
[1721745351745,0.44796,67096.0,67095.0,0.000413]
[1721745351898,0.44796,67096.0,67095.0,0.12418057]
[1721745352276,0.44796,67096.0,67095.0,0.000413]
[1721745352277,1.04412,67096.0,67095.0,0.000413]
[1721745352477,1.19113991,67096.0,67095.0,0.000413]
[1721745352678,0.59497991,67096.0,67095.0,0.001413]
[1721745353094,0.89305991,67096.0,67095.0,0.001413]
[1721745353291,0.44796,67096.0,67095.0,0.001413]
[1721745353516,0.00084,67096.0,67095.0,0.95574291]
[1721745353689,0.00084,67096.0,67095.0,0.33430321]
[1721745353903,0.00084,67096.0,67095.0,0.3363253]
[1721745354115,0.00084,67096.0,67095.0,0.6344093]
[1721745354321,0.01484,67096.0,67095.0,0.9324933]
[1721745354719,0.00084,67096.0,67095.0,0.93248347]
[1721745354943,0.01284,67096.0,67095.0,1.07950338]
[1721745355299,0.00084,67096.0,67095.0,1.60115003]
[1721745355509,0.00084,67096.0,67095.0,1.67415003]
[1721745355713,0.00084,67096.0,67095.0,1.67515003]
[1721745355917,0.00084,67096.0,67095.0,1.47818738]
[1721745356126,0.00084,67096.0,67095.0,1.82627138]
[1721745356332,0.00084,67096.0,67095.0,1.87527138]
[1721745356539,0.00084,67096.0,67095.0,2.08656126]
[1721745356954,0.00184,67096.0,67095.0,2.08756126]
[1721745357168,0.00184,67096.0,67095.0,2.23452391]
[1721745357380,0.00184,67096.0,67095.0,2.07323403]
[1721745357915,0.00184,67096.0,67095.0,2.2335611]
[1721745358347,1.00184,67096.0,67095.0,2.4490611]
[1721745358550,0.92164,67096.0,67095.0,3.2957291]
[1721745358758,0.92164,67096.0,67095.0,3.00750422]
[1721745359194,0.92164,67096.0,67095.0,3.00650422]
[1721745359619,0.92264,67096.0,67095.0,3.00750422]
[1721745359825,0.92164,67096.0,67095.0,3.00650422]
[1721745360264,0.92264,67096.0,67095.0,3.00750422]
[1721745360479,0.92264,67096.0,67095.0,3.30558822]
[1721745360480,0.69632812,67096.0,67095.0,3.30558822]
[1721745360691,0.00084,67103.0,67102.0,2.067938]
[1721745360907,0.00084,67103.0,67102.0,2.92941519]
[1721745361110,0.00084,67103.0,67102.0,3.22746819]
[1721745361988,0.00083,67106.0,67105.0,1.49118]
[1721745362231,0.002,67119.0,67118.0,1.296973]
[1721745362495,0.002,67119.0,67118.0,2.68363653]
[1721745362738,0.002,67119.0,67118.0,3.00461853]
[1721745362960,0.0151907,67138.0,67137.0,0.05]
[1721745363176,0.0151907,67138.0,67137.0,1.68102998]
[1721745363389,0.0151907,67138.0,67137.0,1.79829533]
[1721745363610,0.0101907,67138.0,67137.0,1.74829533]
[1721745363844,0.0101907,67138.0,67137.0,1.69829533]
[1721745364082,0.0084,67147.0,67146.0,0.446787]
[1721745364293,0.0084,67147.0,67146.0,1.41837007]
[1721745364933,0.0084,67147.0,67146.0,0.67265407]
[1721745365458,0.0084,67147.0,67146.0,0.97937688]
[1721745365696,0.0084,67147.0,67146.0,1.42425479]
[1721745365939,0.0084,67147.0,67146.0,3.04508728]
[1721745366191,0.4411165,67167.0,67146.0,3.04508728]
[1721745366192,1.0,67171.0,67168.0,0.5751]
[1721745366436,1.0,67171.0,67168.0,1.75742295]
[1721745366687,1.0,67171.0,67168.0,2.75070295]
[1721745366939,0.002,67179.0,67168.0,2.75070295]
[1721745366940,0.002,67179.0,67176.0,0.15]
[1721745367161,0.002,67179.0,67176.0,1.49860407]
[1721745367374,0.002,67179.0,67176.0,3.42530543]
[1721745368007,0.002,67179.0,67176.0,3.02758043]
[1721745368254,0.002,67179.0,67176.0,2.97343694]
[1721745368467,0.002,67179.0,67176.0,0.900212]
[1721745368680,0.002,67179.0,67176.0,1.297937]
[1721745368889,0.002,67179.0,67176.0,1.5215148]
[1721745369115,0.002,67179.0,67176.0,1.898912]
[1721745369343,0.002,67179.0,67176.0,2.34243518]
[1721745369555,0.002,67179.0,67176.0,2.65874089]
[1721745369768,1e-06,67179.0,67178.0,0.89429]
[1721745369976,0.00204,67209.0,67188.0,0.673208]
[1721745370182,0.00204,67209.0,67188.0,3.71489501]
[1721745370460,0.00204,67209.0,67188.0,4.11256701]
[1721745370676,0.00204,67209.0,67188.0,4.25856702]
[1721745370893,0.00204,67209.0,67188.0,3.79172826]
[1721745371150,0.00204,67209.0,67188.0,4.11240026]
[1721745371408,0.00204,67209.0,67188.0,4.41007226]
[1721745371650,0.00204,67209.0,67188.0,4.28319722]
[1721745371901,0.00204,67209.0,67188.0,4.93593851]
[1721745372137,0.00204,67209.0,67188.0,6.31240026]
[1721745372138,0.44297655,67209.0,67188.0,6.31240026]
[1721745372349,0.44093655,67208.0,67198.0,1.29644]
[1721745372558,0.00204,67209.0,67204.0,0.954702]
[1721745372798,0.00204,67209.0,67204.0,2.93992391]
[1721745373052,0.00204,67209.0,67204.0,4.44878232]
[1721745373287,0.00204,67209.0,67204.0,5.33919337]
[1721745373527,0.00204,67209.0,67204.0,4.55399137]
[1721745373763,0.00204,67209.0,67204.0,2.19951991]
[1721745374006,0.00204,67209.0,67204.0,1.99001991]
[1721745374211,0.00204,67209.0,67204.0,1.47581991]
[1721745374425,0.00204,67209.0,67204.0,1.82342091]
[1721745374644,0.00204,67209.0,67204.0,1.62278256]
[1721745374855,0.00204,67209.0,67204.0,1.60878256]
[1721745375096,0.00204,67209.0,67204.0,1.45998256]
[1721745375307,0.00204,67209.0,67204.0,0.29398256]
[1721745375584,0.297615,67201.0,67196.0,0.3585]
[1721745375794,0.0653,67204.0,67197.0,0.14981391]
[1721745375795,0.297627,67198.0,67197.0,0.14981391]
[1721745376055,0.1367,67198.0,67182.0,0.002794]
[1721745376264,0.1367,67198.0,67183.0,0.14701991]
[1721745376511,0.1367,67198.0,67177.0,0.0614426]
[1721745376735,0.1367,67198.0,67167.0,0.297762]
[1721745376736,0.148856,67179.0,67178.0,0.14981391]
[1721745376962,0.1367,67198.0,67178.0,0.14701991]
[1721745377173,0.1367,67198.0,67180.0,0.297706]
[1721745377390,0.1367,67198.0,67181.0,0.14981391]
[1721745377808,0.1367,67198.0,67181.0,0.002794]
[1721745377809,0.446547,67182.0,67181.0,0.002794]
[1721745378011,0.148854,67180.0,67168.0,0.297759]
[1721745378237,0.0609,67182.0,67166.0,0.002794]
[1721745378238,0.358598,67182.0,67169.0,0.14981391]
[1721745378448,0.358598,67182.0,67178.0,0.001]
[1721745378449,0.82298,67179.0,67178.0,0.001]
[1721745378655,0.82298,67179.0,67169.0,0.14981391]
[1721745378656,0.297717,67178.0,67170.0,0.002794]
[1721745378859,0.446614,67172.0,67171.0,0.14701991]
[1721745379074,0.446614,67172.0,67170.0,0.002794]
[1721745379075,0.44664,67168.0,67167.0,0.002794]
[1721745379285,0.44664,67168.0,67167.0,0.14701991]
[1721745379501,0.0609,67168.0,67154.0,0.002794]
[1721745379724,0.3687,67182.0,67154.0,0.002794]
[1721745379725,0.04372954,67238.0,67171.0,0.05]
[1721745379937,0.002,67239.0,67169.0,0.094]
[1721745379938,0.002,67239.0,67238.0,0.59745]
[1721745380158,0.02568179,67243.0,67235.0,0.29746]
[1721745380159,0.00450568,67243.0,67235.0,0.29746]
[1721745380389,0.00450568,67243.0,67242.0,0.05]
[1721745380647,0.00450568,67243.0,67238.0,0.00663763]
[1721745380648,0.00450568,67243.0,67241.0,0.05]
[1721745380861,0.06780568,67243.0,67242.0,0.05]
[1721745381071,0.21651968,67243.0,67242.0,0.05]
[1721745381281,0.00450568,67243.0,67242.0,0.14701991]
[1721745381541,0.00450568,67243.0,67240.0,0.05]
[1721745381542,0.08420568,67243.0,67240.0,0.05]
[1721745381776,0.09420568,67243.0,67241.0,0.002794]
[1721745382021,0.0633,67242.0,67241.0,0.002794]
[1721745382285,0.0633,67242.0,67238.0,0.00663763]
[1721745382286,0.0633,67242.0,67238.0,0.05663763]
[1721745382525,0.148723,67239.0,67238.0,0.05663763]
[1721745382771,0.0633,67242.0,67240.0,0.05]
[1721745383006,0.0633,67242.0,67241.0,0.19701991]
[1721745383281,0.00450568,67243.0,67242.0,0.05]
[1721745383523,0.00450568,67243.0,67240.0,0.05]
[1721745383758,0.00450568,67243.0,67238.0,0.01548839]
[1721745383759,0.00450568,67243.0,67242.0,0.05]
[1721745384007,0.01150568,67243.0,67242.0,0.001]
[1721745384480,0.01150568,67243.0,67242.0,0.05]
[1721745384481,0.00450568,67243.0,67242.0,0.05]
[1721745384694,0.15821968,67243.0,67242.0,0.05]
[1721745384891,0.00950568,67243.0,67242.0,0.05]
[1721745385127,0.01750568,67243.0,67242.0,0.05]
[1721745385348,0.16121968,67243.0,67242.0,0.05]
[1721745385584,0.148718,67241.0,67240.0,0.05]
[1721745385848,0.446155,67241.0,67240.0,0.05]
[1721745386065,0.14872,67240.0,67239.0,0.00885076]
[1721745386283,0.01150568,67243.0,67240.0,0.05]
[1721745386509,0.00950568,67243.0,67242.0,0.05]
[1721745386732,0.01150568,67243.0,67242.0,0.05]
[1721745386963,0.01150568,67243.0,67242.0,0.19701991]
[1721745387187,0.01150568,67243.0,67242.0,0.21827074]
[1721745387398,0.01150568,67243.0,67242.0,0.19701991]
[1721745387617,0.01150568,67243.0,67239.0,0.05885076]
[1721745387832,0.16022068,67243.0,67239.0,0.05885076]
[1721745388054,0.00950568,67243.0,67242.0,0.05]
[1721745388735,0.00950568,67243.0,67242.0,0.19701991]
[1721745388944,0.20950568,67243.0,67242.0,0.21827074]
[1721745389171,0.20650568,67243.0,67242.0,0.68741974]
[1721745389624,0.20450568,67243.0,67242.0,0.68741974]
[1721745389853,0.20450568,67243.0,67242.0,0.98785274]
[1721745390951,0.20450568,67243.0,67242.0,0.69041974]
[1721745391157,0.20950568,67243.0,67242.0,0.98785274]
[1721745391361,0.20950568,67243.0,67242.0,0.66616891]
[1721745391565,0.20950568,67243.0,67242.0,0.97245267]
[1721745391812,0.20950568,67243.0,67242.0,0.97545267]
[1721745392289,0.20950568,67243.0,67242.0,0.97245267]
[1721745392568,0.20950568,67243.0,67242.0,1.26988567]
[1721745392772,0.21050568,67243.0,67242.0,1.10425424]
[1721745393847,0.20550568,67243.0,67242.0,1.10425424]
[1721745394284,0.20550568,67243.0,67242.0,0.80682124]
[1721745394499,0.20550568,67243.0,67242.0,0.23301991]
[1721745394689,0.20550568,67243.0,67242.0,0.67916891]
[1721745394908,0.20650568,67243.0,67242.0,0.69316891]
[1721745395122,0.20550568,67243.0,67242.0,0.97760191]
[1721745395335,0.20650568,67243.0,67242.0,0.79289416]
[1721745395536,0.20650568,67243.0,67242.0,0.39573591]
[1721745395742,0.20450568,67243.0,67242.0,0.22001991]
[1721745396024,0.20550568,67243.0,67242.0,0.21001991]
[1721745396261,0.20550568,67243.0,67242.0,0.66483466]
[1721745396471,0.20550568,67243.0,67242.0,0.05]
[1721745396679,0.95007568,67243.0,67242.0,0.063]
[1721745396886,0.95007568,67243.0,67238.0,0.00663763]
[1721745396887,0.446161,67240.0,67239.0,0.05]
[1721745397097,1.012302,67240.0,67239.0,0.05]
[1721745397305,1.041061,67239.0,67238.0,0.00663763]
[1721745397526,1.438507,67239.0,67238.0,0.00663763]
[1721745397741,1.438507,67239.0,67228.0,0.05]
[1721745397742,0.743725,67229.0,67228.0,0.05]
[1721745397944,0.2687,67229.0,67228.0,0.05]
[1721745398201,0.1615,67239.0,67236.0,0.05]
[1721745398202,0.2687,67237.0,67236.0,0.05]
[1721745398443,0.0615,67239.0,67238.0,0.05]
[1721745398708,0.210223,67239.0,67238.0,0.05]
[1721745398924,0.507669,67239.0,67238.0,0.05]
[1721745399129,0.776369,67239.0,67238.0,0.05]
[1721745399336,0.478923,67239.0,67238.0,0.05]
[1721745399777,0.3302,67239.0,67238.0,0.05]
[1721745400008,0.3302,67239.0,67238.0,0.19701991]
[1721745400217,0.3332,67239.0,67238.0,0.2315952]
[1721745400427,0.3332,67239.0,67238.0,0.19701991]
[1721745400666,0.003,67239.0,67238.0,1.23809491]
[1721745400904,0.003,67239.0,67238.0,1.21829697]
[1721745401359,0.003,67239.0,67238.0,1.21826558]
[1721745401599,0.20550568,67243.0,67242.0,0.793582]
[1721745401816,0.20550568,67243.0,67242.0,1.38449715]
[1721745402029,0.20550568,67243.0,67242.0,1.46825637]
[1721745402237,0.20550568,67243.0,67242.0,1.86568937]
[1721745402443,0.20550568,67243.0,67242.0,1.46825637]
[1721745402666,0.20450568,67243.0,67242.0,1.56825637]
[1721745402868,0.20450568,67243.0,67242.0,2.43735637]
[1721745403070,0.00839,67245.0,67244.0,1.240984]
[1721745403280,0.44093655,67265.0,67248.0,0.496109]
[1721745403487,0.44093655,67265.0,67248.0,1.06399715]
[1721745403689,0.51460613,67264.0,67248.0,1.08699715]
[1721745403900,0.51460613,67264.0,67248.0,0.87333712]
[1721745404122,0.00018016,67264.0,67248.0,1.17074312]
[1721745404543,0.00018016,67264.0,67248.0,1.76555512]
[1721745404749,0.00018016,67264.0,67248.0,1.46814912]
[1721745405789,0.297344,67263.0,67248.0,0.7895779]
[1721745405994,0.003,67249.0,67248.0,0.8025779]
[1721745406202,0.003,67249.0,67248.0,1.0999839]
[1721745406427,0.003,67249.0,67248.0,1.09584113]
[1721745406659,0.0649,67249.0,67248.0,0.34400922]
[1721745406901,0.004,67249.0,67248.0,1.08585206]
[1721745407142,0.002,67249.0,67248.0,1.07285206]
[1721745407365,0.003,67249.0,67248.0,1.47568604]
[1721745407626,0.003,67249.0,67248.0,1.17828004]
[1721745407832,0.003,67249.0,67248.0,0.88087404]
[1721745408047,0.0589,67256.0,67255.0,0.05]
[1721745408253,0.0589,67256.0,67255.0,0.19701991]
[1721745408696,0.148687,67255.0,67254.0,0.05]
[1721745408969,0.0589,67256.0,67254.0,0.05]
[1721745409213,0.0589,67256.0,67249.0,0.00885591]
[1721745409214,0.0589,67256.0,67255.0,0.32047745]
[1721745409454,0.0589,67256.0,67255.0,0.76653945]
[1721745409671,0.0589,67256.0,67255.0,0.4836955]
[1721745409883,0.0589,67256.0,67255.0,0.48385649]
[1721745410097,0.0589,67256.0,67255.0,0.3234657]
[1721745410366,0.0589,67256.0,67255.0,1.22729349]
[1721745410613,0.0589,67256.0,67255.0,0.63254349]
[1721745410855,0.0589,67256.0,67255.0,0.48885649]
[1721745411107,0.00018016,67264.0,67258.0,0.793405]
[1721745411325,0.00018016,67264.0,67263.0,1.04335]
[1721745411593,0.00018016,67264.0,67263.0,1.08056185]
[1721745411799,0.00018016,67264.0,67263.0,1.37790185]
[1721745412007,0.00018016,67264.0,67263.0,2.2248645]
[1721745412230,1.6e-07,67269.0,67263.0,1.76913441]
[1721745412449,0.002,67299.0,67288.0,0.198614]
[1721745412658,0.50223655,67292.0,67288.0,0.17344579]
[1721745412868,0.50223655,67292.0,67288.0,0.17338605]
[1721745412869,0.0613,67292.0,67288.0,0.17338605]
[1721745413286,0.0613,67292.0,67288.0,0.76624896]
[1721745413494,0.0613,67292.0,67288.0,0.84287386]
[1721745413911,0.0613,67292.0,67288.0,0.32040596]
[1721745414135,0.230112,67289.0,67288.0,0.12338605]
[1721745414328,0.230112,67289.0,67288.0,0.05885591]
[1721745414329,0.0815,67289.0,67288.0,0.05885591]
[1721745414744,0.0815,67289.0,67288.0,0.05985591]
[1721745414953,0.0815,67289.0,67288.0,0.00985591]
[1721745414954,0.527337,67289.0,67288.0,0.00985591]
[1721745415368,0.230112,67289.0,67288.0,0.00985591]
[1721745415590,0.1315,67289.0,67280.0,0.05]
[1721745415820,0.1315,67289.0,67273.0,0.002794]
[1721745415821,0.05,67286.0,67273.0,0.05]
[1721745416058,0.297283,67276.0,67273.0,0.05]
[1721745416293,0.0813,67274.0,67272.0,0.05]
[1721745416519,0.0813,67274.0,67273.0,0.05]
[1721745416746,0.0813,67274.0,67273.0,0.17343184]
[1721745416965,0.0644,67277.0,67276.0,0.05]
[1721745417174,0.0644,67277.0,67276.0,0.32045175]
[1721745417597,0.0644,67277.0,67276.0,0.17343184]
[1721745417825,0.0644,67277.0,67276.0,0.05]
[1721745419868,0.0644,67277.0,67276.0,0.053]
[1721745420284,0.0654,67277.0,67276.0,0.053]
[1721745420498,0.19963739,67277.0,67276.0,0.05]
[1721745420713,0.19963739,67277.0,67274.0,0.05]
[1721745420714,0.148643,67275.0,67274.0,0.05]
[1721745420925,0.05099839,67277.0,67272.0,0.05]
[1721745421132,0.19967739,67277.0,67276.0,0.003]
[1721745421344,0.49695539,67277.0,67276.0,0.003]
[1721745421639,0.49695539,67277.0,67265.0,0.05]
[1721745421640,0.148663,67266.0,67265.0,0.05]
[1721745421829,0.1,67276.0,67265.0,0.05]
[1721745422041,0.2973,67272.0,67265.0,0.19701991]
[1721745422257,0.148656,67269.0,67268.0,0.05]
[1721745422463,0.445983,67267.0,67266.0,0.06970199]
[1721745422692,0.148663,67266.0,67265.0,0.05]
[1721745422938,0.297316,67269.0,67266.0,0.05]
[1721745423169,0.07348942,67275.0,67242.0,0.07440242]
[1721745423170,0.148663,67266.0,67265.0,0.05]
[1721745423406,0.061,67263.0,67261.0,0.05]
[1721745423646,0.061,67263.0,67260.0,0.05]
[1721745423872,0.081,67262.0,67260.0,0.05]
[1721745424088,0.081,67262.0,67257.0,0.05]
[1721745424296,0.081,67262.0,67255.0,0.05]
[1721745424297,0.446056,67256.0,67255.0,0.05]
[1721745424530,0.081,67262.0,67253.0,0.05]
[1721745424752,0.05,67259.0,67253.0,0.05]
[1721745424970,0.05,67259.0,67249.0,0.05]
[1721745424971,0.29738,67254.0,67249.0,0.05]
[1721745425189,0.05,67256.0,67250.0,0.12347453]
[1721745425399,0.05,67256.0,67244.0,0.05]
[1721745425400,0.297419,67245.0,67244.0,0.05]
[1721745425608,0.446142,67243.0,67242.0,0.050913]
[1721745425835,0.148714,67243.0,67242.0,0.050913]
[1721745426044,0.0769,67254.0,67249.0,0.05]
[1721745426263,0.0769,67254.0,67251.0,0.05]
[1721745426472,0.0653,67255.0,67254.0,0.05]
[1721745426708,0.0653,67264.0,67263.0,0.05]
[1721745426944,0.0653,67264.0,67263.0,0.1734479]
[1721745427165,0.1356,67276.0,67273.0,0.05]
[1721745427382,0.1356,67276.0,67275.0,0.05]
[1721745427801,0.1356,67276.0,67275.0,0.47071434]
[1721745428042,0.1356,67276.0,67275.0,0.22049877]
[1721745428504,0.1356,67276.0,67275.0,0.17342734]
[1721745428977,0.1456,67276.0,67275.0,0.17442734]
[1721745429223,0.294241,67276.0,67275.0,0.12442734]
[1721745429460,0.294241,67276.0,67275.0,0.001]
[1721745429461,1.3155151,67276.0,67275.0,0.001]
[1721745429716,0.0806,67275.0,67272.0,0.05]
[1721745429951,0.01,67276.0,67275.0,0.49593]
[1721745430156,0.0806,67284.0,67275.0,0.3204578]
[1721745430367,0.0806,67284.0,67276.0,0.3232518]
[1721745430616,0.0806,67284.0,67276.0,0.4690988]
[1721745430834,0.0626,67285.0,67276.0,0.4690988]
[1721745430835,0.0626,67285.0,67276.0,1.0636628]
[1721745431257,0.0626,67285.0,67276.0,0.4690988]
[1721745431964,0.002,67289.0,67276.0,1.3699448]
[1721745431965,0.00104,67277.0,67276.0,1.3699448]
[1721745432213,0.00104,67277.0,67276.0,1.0726628]
[1721745432419,0.00104,67277.0,67276.0,0.7753808]
[1721745432628,0.00104,67277.0,67276.0,0.47807813]
[1721745432841,0.00104,67277.0,67276.0,0.33443713]
[1721745433051,0.06354,67277.0,67276.0,0.19627923]
[1721745433277,0.14184,67277.0,67276.0,0.19627923]
[1721745433502,0.14184,67277.0,67276.0,0.80885006]
[1721745433503,0.00104,67277.0,67276.0,0.80885006]
[1721745433744,0.00104,67277.0,67276.0,1.40341406]
[1721745433984,0.00104,67277.0,67276.0,1.39455205]
[1721745434458,0.00104,67277.0,67276.0,1.09727005]
[1721745434692,0.00104,67277.0,67276.0,0.33443713]
[1721745435125,0.00104,67277.0,67276.0,0.48307813]
[1721745435364,0.00104,67277.0,67276.0,0.35966091]
[1721745435598,0.05104,67277.0,67276.0,0.33444385]
[1721745435799,0.05104,67277.0,67276.0,1.07764885]
[1721745436211,0.05104,67277.0,67276.0,0.78036685]
[1721745436445,0.05104,67277.0,67276.0,1.07764885]
[1721745436658,0.05104,67277.0,67276.0,0.78036685]
[1721745437575,0.05104,67277.0,67276.0,0.33444385]
[1721745437819,0.05104,67277.0,67276.0,0.18742394]
[1721745438300,0.05104,67277.0,67276.0,0.63334694]
[1721745438542,0.05104,67277.0,67276.0,0.78036426]
[1721745438790,0.05104,67277.0,67276.0,1.07764626]
[1721745439034,0.05108,67277.0,67276.0,0.33444126]
[1721745439521,0.05108,67277.0,67276.0,0.18742135]
[1721745439741,0.05108,67277.0,67276.0,1.0963884]
[1721745439990,0.05108,67277.0,67276.0,1.07764657]
[1721745440244,0.05108,67277.0,67276.0,0.78036457]
[1721745440480,0.05108,67277.0,67276.0,0.48308257]
[1721745440711,0.05108,67277.0,67276.0,1.07764657]
[1721745441124,0.05108,67277.0,67276.0,0.33444157]
[1721745441128,0.05108,67277.0,67276.0,0.18742166]
[1721745441347,0.05108,67277.0,67276.0,0.33606266]
[1721745441592,0.05108,67277.0,67276.0,0.81396952]
[1721745441808,0.05108,67277.0,67276.0,0.78036325]
[1721745442022,0.05108,67277.0,67276.0,0.48308125]
[1721745442284,0.0509011,67277.0,67276.0,0.44224025]
[1721745442502,0.0509011,67277.0,67276.0,2.07493849]
[1721745442703,0.0509011,67277.0,67276.0,1.79569372]
[1721745443123,0.0509011,67277.0,67276.0,1.49841172]
[1721745443332,0.0509011,67277.0,67276.0,0.79604772]
[1721745443543,0.05004,67277.0,67276.0,1.08432972]
[1721745443793,0.05004,67277.0,67276.0,1.78389372]
[1721745444038,0.002,67289.0,67288.0,2.30623]
[1721745444274,4e-05,67300.0,67288.0,2.30623]
[1721745444275,4e-05,67300.0,67294.0,1.24021]
[1721745444511,4e-05,67300.0,67294.0,2.24763973]
[1721745444751,4e-05,67300.0,67298.0,1.442962]
[1721745445007,4e-05,67300.0,67298.0,2.68027607]
[1721745445242,4e-05,67300.0,67299.0,1.387314]
[1721745445486,0.41414556,67331.0,67330.0,0.04963046]
[1721745445961,0.1495182,67333.0,67332.0,0.04963046]
[1721745446199,0.1495182,67333.0,67308.0,0.297138]
[1721745446200,0.0010022,67333.0,67323.0,0.04963046]
[1721745446433,0.07348942,67336.0,67326.0,0.04963046]
[1721745446682,0.06206954,67341.0,67326.0,0.04963046]
[1721745446683,0.148526,67328.0,67327.0,0.002794]
[1721745446932,0.148526,67328.0,67316.0,0.04963046]
[1721745446933,0.1396,67328.0,67316.0,0.04963046]
[1721745447196,0.14855,67317.0,67316.0,0.04963046]
[1721745447490,0.07348942,67317.0,67312.0,0.04963046]
[1721745447722,0.148561,67312.0,67311.0,0.04963046]
[1721745447962,0.212753,67316.0,67315.0,0.04963046]
[1721745448424,0.212753,67316.0,67315.0,0.19665037]
[1721745448425,0.0642,67316.0,67315.0,0.19665037]
[1721745448639,0.0632,67327.0,67326.0,0.04963046]
[1721745449283,0.0632,67327.0,67326.0,0.19665037]
[1721745449494,0.0632,67327.0,67326.0,0.21631541]
[1721745449700,0.0632,67327.0,67326.0,0.19665037]
[1721745449913,0.0632,67327.0,67326.0,0.19765037]
[1721745450552,0.38172,67336.0,67326.0,0.19765037]